[Event "Early-Titled-Tuesday-Blitz-January-23-2024"]
[Site "Chess.com"]
[Date "2024.01.23"]
[Round "8"]
[White "Dinosaurio_1975"]
[Black "Janosik"]
[Result "0-1"]
[WhiteElo "2656"]
[BlackElo "2849"]
[TimeControl "180+1"]
[EndTime "9:27:54 PST"]
[Termination "Janosik won by checkmate"]

1. e4 {[%clk 0:03:00.9]} 1... e5 {[%clk 0:02:55.3]} 2. Nf3 {[%clk 0:03:00]} 2...
Nc6 {[%clk 0:02:56]} 3. Nc3 {[%clk 0:02:58.8]} 3... d6 {[%clk 0:02:55.1]} 4. d4
{[%clk 0:02:58.1]} 4... Bd7 {[%clk 0:02:55.6]} 5. Bb5 {[%clk 0:02:56.8]} 5...
Nge7 {[%clk 0:02:54.6]} 6. Be3 {[%clk 0:02:53.2]} 6... a6 {[%clk 0:02:53.6]} 7.
Be2 {[%clk 0:02:51.7]} 7... g6 {[%clk 0:02:52.7]} 8. Qd2 {[%clk 0:02:46.3]} 8...
Bg7 {[%clk 0:02:52.7]} 9. h4 {[%clk 0:02:46.1]} 9... h6 {[%clk 0:02:52.8]} 10.
d5 {[%clk 0:02:31.8]} 10... Nb8 {[%clk 0:02:51.9]} 11. h5 {[%clk 0:02:32.3]}
11... g5 {[%clk 0:02:50.7]} 12. Nh2 {[%clk 0:02:32.9]} 12... f5 {[%clk
0:02:50.9]} 13. exf5 {[%clk 0:02:32.7]} 13... Nxf5 {[%clk 0:02:51.8]} 14. Bd3
{[%clk 0:02:26.1]} 14... O-O {[%clk 0:02:51.9]} 15. g4 {[%clk 0:02:18.9]} 15...
Nh4 {[%clk 0:02:41.1]} 16. O-O-O {[%clk 0:02:17.4]} 16... a5 {[%clk 0:02:41.2]}
17. Qe2 {[%clk 0:02:10.1]} 17... Na6 {[%clk 0:02:38.2]} 18. a3 {[%clk 0:02:08]}
18... Qe7 {[%clk 0:02:20.6]} 19. Nf1 {[%clk 0:02:04.5]} 19... Nf3 {[%clk
0:02:10.2]} 20. Ng3 {[%clk 0:02:02.2]} 20... Bxg4 {[%clk 0:02:07.3]} 21. Rdg1
{[%clk 0:01:16.5]} 21... Nb4 {[%clk 0:01:55.8]} 22. Be4 {[%clk 0:01:13.3]} 22...
c6 {[%clk 0:01:47.2]} 23. axb4 {[%clk 0:01:07.1]} 23... axb4 {[%clk 0:01:48.1]}
24. Nb1 {[%clk 0:01:07.6]} 24... Ra1 {[%clk 0:01:47.8]} 25. Nf5 {[%clk
0:00:55.6]} 25... Bxf5 {[%clk 0:01:16.6]} 26. Qxf3 {[%clk 0:00:54.2]} 26... cxd5
{[%clk 0:00:46.9]} 27. Bxf5 {[%clk 0:00:29.2]} 27... e4 {[%clk 0:00:47.4]} 28.
Qg4 {[%clk 0:00:28.7]} 28... Qe5 {[%clk 0:00:47.9]} 29. Be6+ {[%clk 0:00:28.5]}
29... Kh8 {[%clk 0:00:47.6]} 30. Kd2 {[%clk 0:00:10.4]} 30... d4 {[%clk
0:00:46.9]} 31. Bxg5 {[%clk 0:00:09.8]} 31... Rxf2+ {[%clk 0:00:38.2]} 32. Ke1
{[%clk 0:00:07.9]} 32... e3 {[%clk 0:00:38.6]} 33. Ba2 {[%clk 0:00:02.7]} 33...
d3 {[%clk 0:00:22.4]} 34. Qc8+ {[%clk 0:00:02.1]} 34... Rf8 {[%clk 0:00:20.9]}
35. Qe6 {[%clk 0:00:01.6]} 35... Qxe6 {[%clk 0:00:18.3]} 36. Bxe6 {[%clk
0:00:02.2]} 36... Rxb1# {[%clk 0:00:18.5]} 0-1

[Event "Early-Titled-Tuesday-Blitz-January-23-2024"]
[Site "Chess.com"]
[Date "2024.01.23"]
[Round "8"]
[White "chess_blitz00"]
[Black "Iunusovnuriddin"]
[Result "0-1"]
[WhiteElo "2451"]
[BlackElo "2304"]
[TimeControl "180+1"]
[EndTime "9:27:54 PST"]
[Termination "Iunusovnuriddin won by checkmate"]

1. b3 {[%clk 0:03:00.9]} 1... d6 {[%clk 0:02:54.1]} 2. Bb2 {[%clk 0:03:01.8]}
2... Nd7 {[%clk 0:02:54.3]} 3. Nf3 {[%clk 0:02:59.1]} 3... Ngf6 {[%clk
0:02:53.9]} 4. e3 {[%clk 0:02:58.8]} 4... g6 {[%clk 0:02:53.6]} 5. Bc4 {[%clk
0:02:56.3]} 5... Bg7 {[%clk 0:02:53.5]} 6. Bxf7+ {[%clk 0:02:46.6]} 6... Kxf7
{[%clk 0:02:45.7]} 7. Ng5+ {[%clk 0:02:47]} 7... Kg8 {[%clk 0:02:45.8]} 8. Ne6
{[%clk 0:02:47.9]} 8... Qe8 {[%clk 0:02:45.9]} 9. Nxc7 {[%clk 0:02:44.2]} 9...
Qf7 {[%clk 0:02:44.5]} 10. Nxa8 {[%clk 0:02:44.6]} 10... Ne4 {[%clk 0:02:42.4]}
11. f3 {[%clk 0:01:57.6]} 11... Bxb2 {[%clk 0:02:36.8]} 12. fxe4 {[%clk
0:01:56.5]} 12... Bxa1 {[%clk 0:01:49.6]} 13. c3 {[%clk 0:01:55.3]} 13... Ne5
{[%clk 0:01:40.8]} 14. d4 {[%clk 0:01:48]} 14... Ng4 {[%clk 0:01:36.7]} 15. Qe2
{[%clk 0:01:35.6]} 15... Kg7 {[%clk 0:01:27.2]} 16. Nc7 {[%clk 0:01:19.9]} 16...
Bd7 {[%clk 0:01:10.3]} 17. Rf1 {[%clk 0:01:12.3]} 17... Nf6 {[%clk 0:00:49]} 18.
e5 {[%clk 0:01:05.5]} 18... dxe5 {[%clk 0:00:49.6]} 19. dxe5 {[%clk 0:01:03.7]}
19... Rc8 {[%clk 0:00:50]} 20. exf6+ {[%clk 0:01:01.3]} 20... exf6 {[%clk
0:00:50.9]} 21. Nb5 {[%clk 0:00:41.4]} 21... Qd5 {[%clk 0:00:39.3]} 22. Nd4
{[%clk 0:00:38]} 22... Bxc3+ {[%clk 0:00:24.3]} 23. Nxc3 {[%clk 0:00:37.9]}
23... Rxc3 {[%clk 0:00:25.2]} 24. Kd2 {[%clk 0:00:20]} 24... Qa5 {[%clk
0:00:23]} 25. Kd1 {[%clk 0:00:13.5]} 25... Bg4 {[%clk 0:00:08.4]} 26. Qxg4
{[%clk 0:00:04.1]} 26... Rd3+ {[%clk 0:00:08.8]} 27. Ke2 {[%clk 0:00:03.3]}
27... Qd2+ {[%clk 0:00:08.6]} 28. Kf3 {[%clk 0:00:03.7]} 28... Rxe3+ {[%clk
0:00:09.1]} 29. Kf4 {[%clk 0:00:03.4]} 29... Qxd4# {[%clk 0:00:09.4]} 0-1

[Event "Early-Titled-Tuesday-Blitz-January-23-2024"]
[Site "Chess.com"]
[Date "2024.01.23"]
[Round "8"]
[White "Cheer_Down"]
[Black "dmosesov"]
[Result "1-0"]
[WhiteElo "2467"]
[BlackElo "2589"]
[TimeControl "180+1"]
[EndTime "9:27:56 PST"]
[Termination "Cheer_Down won on time"]

1. e4 {[%clk 0:02:54.9]} 1... Nf6 {[%clk 0:02:40.8]} 2. d3 {[%clk 0:02:51.6]}
2... e5 {[%clk 0:02:35.9]} 3. Nf3 {[%clk 0:02:49.7]} 3... Nc6 {[%clk 0:02:36.3]}
4. g3 {[%clk 0:02:48.6]} 4... d5 {[%clk 0:02:36]} 5. exd5 {[%clk 0:02:46.3]}
5... Nxd5 {[%clk 0:02:36.9]} 6. Bg2 {[%clk 0:02:47]} 6... Be7 {[%clk 0:02:32.3]}
7. O-O {[%clk 0:02:44.9]} 7... O-O {[%clk 0:02:32.9]} 8. Re1 {[%clk 0:02:42.6]}
8... Bf6 {[%clk 0:02:22.6]} 9. Nbd2 {[%clk 0:02:37.2]} 9... g6 {[%clk 0:02:21]}
10. Nc4 {[%clk 0:02:35.1]} 10... Re8 {[%clk 0:02:20.9]} 11. c3 {[%clk
0:02:30.8]} 11... Bf5 {[%clk 0:02:13.8]} 12. a4 {[%clk 0:01:28.1]} 12... Nb6
{[%clk 0:02:03.6]} 13. a5 {[%clk 0:01:18.9]} 13... Nxc4 {[%clk 0:01:58.8]} 14.
dxc4 {[%clk 0:01:19.3]} 14... Bd3 {[%clk 0:01:41]} 15. a6 {[%clk 0:01:12.5]}
15... Rb8 {[%clk 0:00:59]} 16. axb7 {[%clk 0:01:10.2]} 16... Bxc4 {[%clk
0:00:59.1]} 17. Qxd8 {[%clk 0:00:57.4]} 17... Rexd8 {[%clk 0:00:55.2]} 18. Ng5
{[%clk 0:00:32.2]} 18... Bd5 {[%clk 0:00:51.2]} 19. Bxd5 {[%clk 0:00:27.9]}
19... Rxd5 {[%clk 0:00:51.1]} 20. Ra6 {[%clk 0:00:27.3]} 20... Bxg5 {[%clk
0:00:48.3]} 21. Rxc6 {[%clk 0:00:26.3]} 21... Bxc1 {[%clk 0:00:35.3]} 22. Rxc1
{[%clk 0:00:24.9]} 22... Rxb7 {[%clk 0:00:28.3]} 23. b4 {[%clk 0:00:25]} 23...
a5 {[%clk 0:00:28.8]} 24. bxa5 {[%clk 0:00:18.9]} 24... Rxa5 {[%clk 0:00:28.1]}
25. Rd1 {[%clk 0:00:19.2]} 25... Kg7 {[%clk 0:00:23.2]} 26. Rd7 {[%clk
0:00:18.9]} 26... h5 {[%clk 0:00:14.3]} 27. h4 {[%clk 0:00:16.9]} 27... Rab5
{[%clk 0:00:03.7]} 28. Rcxc7 {[%clk 0:00:14]} 1-0

[Event "Early-Titled-Tuesday-Blitz-January-23-2024"]
[Site "Chess.com"]
[Date "2024.01.23"]
[Round "8"]
[White "EdmundPlayer"]
[Black "InitiatingASC"]
[Result "0-1"]
[WhiteElo "2262"]
[BlackElo "2438"]
[TimeControl "180+1"]
[EndTime "9:27:57 PST"]
[Termination "InitiatingASC won on time"]

1. Nc3 {[%clk 0:03:00.9]} 1... Nf6 {[%clk 0:02:59.1]} 2. e4 {[%clk 0:03:00.9]}
2... e5 {[%clk 0:02:54.7]} 3. Bc4 {[%clk 0:03:00.1]} 3... Be7 {[%clk 0:02:51.2]}
4. d3 {[%clk 0:02:58.1]} 4... O-O {[%clk 0:02:49.8]} 5. Nge2 {[%clk 0:02:53]}
5... c6 {[%clk 0:02:49.9]} 6. Bb3 {[%clk 0:02:44.7]} 6... d6 {[%clk 0:02:47.5]}
7. h3 {[%clk 0:02:43.1]} 7... Na6 {[%clk 0:02:47.1]} 8. a4 {[%clk 0:02:37.1]}
8... Nc5 {[%clk 0:02:46.5]} 9. Ba2 {[%clk 0:02:36.1]} 9... Be6 {[%clk
0:02:46.7]} 10. Ng3 {[%clk 0:02:10.3]} 10... Re8 {[%clk 0:02:32.6]} 11. O-O
{[%clk 0:02:00.8]} 11... Bxa2 {[%clk 0:02:25.7]} 12. Rxa2 {[%clk 0:01:26.3]}
12... d5 {[%clk 0:02:23]} 13. Nf5 {[%clk 0:01:25.6]} 13... Bf8 {[%clk
0:02:22.9]} 14. Qf3 {[%clk 0:01:21.3]} 14... d4 {[%clk 0:02:12.8]} 15. Ne2
{[%clk 0:01:14.4]} 15... Ne6 {[%clk 0:02:12.9]} 16. Neg3 {[%clk 0:01:07.8]}
16... Qc7 {[%clk 0:01:40.6]} 17. Nh5 {[%clk 0:01:05.2]} 17... Nxh5 {[%clk
0:01:37.3]} 18. Qxh5 {[%clk 0:01:05.8]} 18... Nf4 {[%clk 0:01:28.3]} 19. Qg4
{[%clk 0:01:03.6]} 19... h5 {[%clk 0:01:16]} 20. Qg5 {[%clk 0:00:46.1]} 20... f6
{[%clk 0:01:03.2]} 21. Nh6+ {[%clk 0:00:20.7]} 21... Kh7 {[%clk 0:00:55]} 22.
Qf5+ {[%clk 0:00:20.2]} 22... Kxh6 {[%clk 0:00:41.6]} 23. g4 {[%clk 0:00:11.2]}
23... Qf7 {[%clk 0:00:20.6]} 24. Bxf4+ {[%clk 0:00:09.1]} 24... exf4 {[%clk
0:00:20.7]} 25. Ra3 {[%clk 0:00:07.7]} 25... Bxa3 {[%clk 0:00:18.6]} 26. bxa3
{[%clk 0:00:07.6]} 26... g6 {[%clk 0:00:18.5]} 27. Qc5 {[%clk 0:00:07.1]} 27...
Re5 {[%clk 0:00:17]} 28. Qxd4 {[%clk 0:00:06.5]} 28... hxg4 {[%clk 0:00:17]} 29.
hxg4 {[%clk 0:00:06.6]} 29... g5 {[%clk 0:00:15.9]} 30. Kg2 {[%clk 0:00:06.8]}
30... Kg7 {[%clk 0:00:15.7]} 31. Qd6 {[%clk 0:00:03.1]} 31... Rh8 {[%clk
0:00:15.1]} 32. f3 {[%clk 0:00:01.7]} 32... Rh4 {[%clk 0:00:14.7]} 33. d4 {[%clk
0:00:01.7]} 33... Re8 {[%clk 0:00:13.8]} 34. e5 {[%clk 0:00:01.3]} 34... Reh8
{[%clk 0:00:13.1]} 0-1

[Event "Early-Titled-Tuesday-Blitz-January-23-2024"]
[Site "Chess.com"]
[Date "2024.01.23"]
[Round "8"]
[White "Witty_Alien"]
[Black "CristianS27"]
[Result "1-0"]
[WhiteElo "2352"]
[BlackElo "2558"]
[TimeControl "180+1"]
[EndTime "9:27:58 PST"]
[Termination "Witty_Alien won on time"]

1. e4 {[%clk 0:02:59.3]} 1... e5 {[%clk 0:03:00.3]} 2. d4 {[%clk 0:02:58.7]}
2... exd4 {[%clk 0:03:00.5]} 3. c3 {[%clk 0:02:59.2]} 3... d5 {[%clk 0:03:00.1]}
4. e5 {[%clk 0:02:59.3]} 4... dxc3 {[%clk 0:02:58.9]} 5. Nf3 {[%clk 0:02:59.3]}
5... Nc6 {[%clk 0:02:58.5]} 6. Bd3 {[%clk 0:02:59.5]} 6... Bg4 {[%clk
0:02:56.6]} 7. O-O {[%clk 0:02:51.8]} 7... Bc5 {[%clk 0:02:48]} 8. h3 {[%clk
0:02:46.9]} 8... Bh5 {[%clk 0:02:47.4]} 9. Nxc3 {[%clk 0:02:34.7]} 9... Nge7
{[%clk 0:02:46.9]} 10. Re1 {[%clk 0:02:28.9]} 10... Nd4 {[%clk 0:02:23.5]} 11.
g4 {[%clk 0:01:19.3]} 11... Nxf3+ {[%clk 0:02:23.1]} 12. Qxf3 {[%clk 0:01:19.1]}
12... Bg6 {[%clk 0:02:22.7]} 13. Bg5 {[%clk 0:01:10.3]} 13... c6 {[%clk
0:02:17.9]} 14. e6 {[%clk 0:01:06.5]} 14... O-O {[%clk 0:02:07]} 15. Bxg6 {[%clk
0:00:59]} 15... hxg6 {[%clk 0:02:02.3]} 16. Re2 {[%clk 0:00:18.4]} 16... fxe6
{[%clk 0:01:57.9]} 17. Qd3 {[%clk 0:00:18.2]} 17... Qb6 {[%clk 0:01:37.1]} 18.
Kg2 {[%clk 0:00:11.3]} 18... Rf7 {[%clk 0:01:27.6]} 19. Na4 {[%clk 0:00:07.7]}
19... Qb4 {[%clk 0:01:23.4]} 20. Nxc5 {[%clk 0:00:04.3]} 20... Qxc5 {[%clk
0:01:24.3]} 21. Rae1 {[%clk 0:00:03.1]} 21... Raf8 {[%clk 0:01:23.1]} 22. Be3
{[%clk 0:00:03.5]} 22... Qd6 {[%clk 0:01:20.9]} 23. Bd4 {[%clk 0:00:02.7]} 23...
Qf4 {[%clk 0:01:13.5]} 24. Rxe6 {[%clk 0:00:01.3]} 24... Nc8 {[%clk 0:00:51.4]}
25. Rxg6 {[%clk 0:00:02]} 25... b6 {[%clk 0:00:35]} 26. Re2 {[%clk 0:00:02.4]}
26... c5 {[%clk 0:00:34.9]} 27. Be5 {[%clk 0:00:03.1]} 27... Qa4 {[%clk
0:00:22.2]} 28. Rh6 {[%clk 0:00:03.4]} 28... Re8 {[%clk 0:00:04.1]} 29. Qh7+
{[%clk 0:00:03.3]} 29... Kf8 {[%clk 0:00:04.8]} 30. Bxg7+ {[%clk 0:00:03.7]}
30... Rxg7 {[%clk 0:00:03]} 31. Rf6+ {[%clk 0:00:04.2]} 1-0

[Event "Early-Titled-Tuesday-Blitz-January-23-2024"]
[Site "Chess.com"]
[Date "2024.01.23"]
[Round "8"]
[White "MatthewG-p4p"]
[Black "Meri-Arabidze"]
[Result "0-1"]
[WhiteElo "2877"]
[BlackElo "2732"]
[TimeControl "180+1"]
[EndTime "9:28:00 PST"]
[Termination "Meri-Arabidze won by resignation"]

1. f4 {[%clk 0:03:00.9]} 1... d5 {[%clk 0:02:59.2]} 2. Nf3 {[%clk 0:03:01.1]}
2... Nf6 {[%clk 0:02:59.5]} 3. g3 {[%clk 0:03:01.7]} 3... g6 {[%clk 0:03:00]} 4.
Bg2 {[%clk 0:03:02.4]} 4... Bg7 {[%clk 0:03:00.6]} 5. O-O {[%clk 0:03:03.3]}
5... O-O {[%clk 0:03:01]} 6. d3 {[%clk 0:03:04.1]} 6... c5 {[%clk 0:03:01]} 7.
Ne5 {[%clk 0:03:04.3]} 7... Qc7 {[%clk 0:02:57.4]} 8. Nc3 {[%clk 0:03:03.7]}
8... Rd8 {[%clk 0:02:54.6]} 9. Qe1 {[%clk 0:02:45.6]} 9... b6 {[%clk 0:02:54.4]}
10. e4 {[%clk 0:02:40.9]} 10... Bb7 {[%clk 0:02:52.1]} 11. a4 {[%clk 0:02:38.2]}
11... a6 {[%clk 0:02:50.6]} 12. h3 {[%clk 0:02:28.4]} 12... e6 {[%clk
0:02:50.3]} 13. g4 {[%clk 0:02:27]} 13... Ra7 {[%clk 0:02:23.5]} 14. g5 {[%clk
0:02:09.9]} 14... Nfd7 {[%clk 0:02:22.9]} 15. Ng4 {[%clk 0:02:07.7]} 15... Nc6
{[%clk 0:02:15.3]} 16. Qh4 {[%clk 0:01:59]} 16... Nd4 {[%clk 0:02:08.8]} 17. Rf2
{[%clk 0:01:55.4]} 17... dxe4 {[%clk 0:02:00]} 18. dxe4 {[%clk 0:01:49.7]} 18...
Bc6 {[%clk 0:01:45.8]} 19. Be3 {[%clk 0:01:38]} 19... b5 {[%clk 0:01:37.3]} 20.
Nf6+ {[%clk 0:01:26.3]} 20... Nxf6 {[%clk 0:01:35.9]} 21. gxf6 {[%clk
0:01:27.2]} 21... Bf8 {[%clk 0:01:35.4]} 22. Raf1 {[%clk 0:01:00.5]} 22... b4
{[%clk 0:01:32.7]} 23. Nb1 {[%clk 0:00:53.3]} 23... Qb7 {[%clk 0:01:24.5]} 24.
Nd2 {[%clk 0:00:48.8]} 24... Nxc2 {[%clk 0:01:21.9]} 25. Nc4 {[%clk 0:00:30.9]}
25... Nxe3 {[%clk 0:01:21.5]} 26. Nxe3 {[%clk 0:00:31.8]} 26... Bxe4 {[%clk
0:01:16.8]} 27. f5 {[%clk 0:00:32.4]} 27... exf5 {[%clk 0:00:59.1]} 28. Nxf5
{[%clk 0:00:26.4]} 28... Bxg2 {[%clk 0:00:32.1]} 29. Rxg2 {[%clk 0:00:16.5]}
29... c4 {[%clk 0:00:32.6]} 30. Qxc4 {[%clk 0:00:09.9]} 30... Qb6+ {[%clk
0:00:26.3]} 31. Kh1 {[%clk 0:00:07.1]} 31... Rc7 {[%clk 0:00:26.6]} 32. Qh4
{[%clk 0:00:06.8]} 32... Qc6 {[%clk 0:00:24.8]} 33. Nh6+ {[%clk 0:00:05.6]}
33... Kh8 {[%clk 0:00:24.8]} 34. a5 {[%clk 0:00:04.4]} 34... Rd2 {[%clk
0:00:22.8]} 35. Rg1 {[%clk 0:00:03.7]} 35... Rcd7 {[%clk 0:00:18.8]} 36. Ng4
{[%clk 0:00:03.2]} 36... Rxg2 {[%clk 0:00:18.3]} 37. Rxg2 {[%clk 0:00:04.1]}
37... Rd1+ {[%clk 0:00:18.3]} 38. Kh2 {[%clk 0:00:03.8]} 38... Bd6+ {[%clk
0:00:19.1]} 0-1

[Event "Early-Titled-Tuesday-Blitz-January-23-2024"]
[Site "Chess.com"]
[Date "2024.01.23"]
[Round "8"]
[White "kleinebeer98"]
[Black "Msb2"]
[Result "1-0"]
[WhiteElo "2882"]
[BlackElo "3046"]
[TimeControl "180+1"]
[EndTime "9:28:02 PST"]
[Termination "kleinebeer98 won by checkmate"]

1. e4 {[%clk 0:03:00.9]} 1... e6 {[%clk 0:03:00.2]} 2. d4 {[%clk 0:03:00.5]}
2... d5 {[%clk 0:03:01.1]} 3. Nc3 {[%clk 0:03:01]} 3... Nf6 {[%clk 0:03:01.2]}
4. Bg5 {[%clk 0:03:00.9]} 4... dxe4 {[%clk 0:03:00.9]} 5. Nxe4 {[%clk
0:03:01.1]} 5... Be7 {[%clk 0:03:01.4]} 6. Bxf6 {[%clk 0:03:01]} 6... gxf6
{[%clk 0:03:01.9]} 7. Nf3 {[%clk 0:03:01.5]} 7... f5 {[%clk 0:03:02.4]} 8. Nc3
{[%clk 0:03:01.4]} 8... a6 {[%clk 0:03:03]} 9. g3 {[%clk 0:03:01]} 9... b5
{[%clk 0:03:03.6]} 10. Bg2 {[%clk 0:03:01.4]} 10... Bb7 {[%clk 0:03:03.6]} 11.
Qe2 {[%clk 0:03:01.8]} 11... c5 {[%clk 0:02:58.2]} 12. dxc5 {[%clk 0:02:58.8]}
12... Bxc5 {[%clk 0:02:50.9]} 13. Qe5 {[%clk 0:02:55.8]} 13... O-O {[%clk
0:01:45.3]} 14. Qxc5 {[%clk 0:02:54.3]} 14... Nd7 {[%clk 0:01:46.2]} 15. Qd6
{[%clk 0:02:44.7]} 15... Nf6 {[%clk 0:01:45]} 16. Qxd8 {[%clk 0:02:44.5]} 16...
Rfxd8 {[%clk 0:01:45.9]} 17. O-O {[%clk 0:02:41.6]} 17... Rac8 {[%clk 0:01:45]}
18. Rfd1 {[%clk 0:02:39]} 18... Rxd1+ {[%clk 0:01:43.5]} 19. Rxd1 {[%clk
0:02:37.6]} 19... b4 {[%clk 0:01:44.1]} 20. Na4 {[%clk 0:02:35.3]} 20... Rxc2
{[%clk 0:01:42.3]} 21. Nd4 {[%clk 0:02:35.8]} 21... Rc7 {[%clk 0:01:37.4]} 22.
Bxb7 {[%clk 0:02:35.4]} 22... Rxb7 {[%clk 0:01:38.3]} 23. Nc5 {[%clk 0:02:33.8]}
23... Rb6 {[%clk 0:01:36.4]} 24. Kg2 {[%clk 0:02:27.9]} 24... Rd6 {[%clk
0:01:23.8]} 25. Rd3 {[%clk 0:02:18.2]} 25... a5 {[%clk 0:01:15.2]} 26. Ndb3
{[%clk 0:02:11.1]} 26... Rc6 {[%clk 0:01:15.4]} 27. Rd8+ {[%clk 0:02:05.1]}
27... Kg7 {[%clk 0:01:15.6]} 28. Ra8 {[%clk 0:02:06]} 28... Rd6 {[%clk
0:01:08.1]} 29. Rxa5 {[%clk 0:02:03.6]} 29... Rd1 {[%clk 0:01:08.1]} 30. Ra7
{[%clk 0:01:56.2]} 30... Kg6 {[%clk 0:01:07.1]} 31. Rb7 {[%clk 0:01:46.1]} 31...
Rb1 {[%clk 0:01:05.4]} 32. Rxb4 {[%clk 0:01:40.9]} 32... Rxb2 {[%clk 0:01:05.4]}
33. a4 {[%clk 0:01:39.4]} 33... Nd5 {[%clk 0:01:02]} 34. Rd4 {[%clk 0:01:21.7]}
34... Ra2 {[%clk 0:00:49.7]} 35. Rd2 {[%clk 0:01:16.5]} 35... Ra3 {[%clk
0:00:49.8]} 36. a5 {[%clk 0:01:16.1]} 36... Nb4 {[%clk 0:00:45.9]} 37. Rd8
{[%clk 0:01:10.1]} 37... Ra2 {[%clk 0:00:45.4]} 38. Rb8 {[%clk 0:01:04.5]} 38...
Nc6 {[%clk 0:00:42.2]} 39. Rb5 {[%clk 0:01:00.8]} 39... Ne5 {[%clk 0:00:39.5]}
40. Nxe6 {[%clk 0:00:58.1]} 40... Ng4 {[%clk 0:00:39.9]} 41. Nf4+ {[%clk
0:00:57.3]} 41... Kf6 {[%clk 0:00:38.4]} 42. Nd3 {[%clk 0:00:52.7]} 42... Ne3+
{[%clk 0:00:34.6]} 43. Kf3 {[%clk 0:00:50.6]} 43... Nc4 {[%clk 0:00:35.5]} 44.
Rc5 {[%clk 0:00:47.6]} 44... Nd6 {[%clk 0:00:31.2]} 45. Rc6 {[%clk 0:00:46]}
45... Ke7 {[%clk 0:00:31.9]} 46. a6 {[%clk 0:00:39.6]} 46... Ne4 {[%clk
0:00:32.3]} 47. Nd4 {[%clk 0:00:36.7]} 47... Nd6 {[%clk 0:00:17.5]} 48. Nb4
{[%clk 0:00:33.2]} 48... Ra3+ {[%clk 0:00:17.3]} 49. Kg2 {[%clk 0:00:33.1]}
49... Ra4 {[%clk 0:00:17.4]} 50. Nd5+ {[%clk 0:00:33.2]} 50... Kd7 {[%clk
0:00:17.1]} 51. Nb6+ {[%clk 0:00:33.9]} 51... Ke7 {[%clk 0:00:16.4]} 52. Nxa4
{[%clk 0:00:34.3]} 52... f4 {[%clk 0:00:17.3]} 53. Rxd6 {[%clk 0:00:34.3]} 53...
f3+ {[%clk 0:00:18.2]} 54. Kxf3 {[%clk 0:00:34.9]} 54... Kxd6 {[%clk 0:00:18.8]}
55. a7 {[%clk 0:00:35.8]} 55... Kd5 {[%clk 0:00:19.7]} 56. a8=Q+ {[%clk
0:00:36.7]} 56... Kc4 {[%clk 0:00:20.5]} 57. Qe4 {[%clk 0:00:37.5]} 57... Kb4
{[%clk 0:00:21]} 58. Qxh7 {[%clk 0:00:38.4]} 58... Ka3 {[%clk 0:00:21.9]} 59.
Qxf7 {[%clk 0:00:39.3]} 59... Kb4 {[%clk 0:00:22]} 60. Qb3+ {[%clk 0:00:39.7]}
60... Ka5 {[%clk 0:00:22.4]} 61. Qb5# {[%clk 0:00:40.6]} 1-0

[Event "Early-Titled-Tuesday-Blitz-January-23-2024"]
[Site "Chess.com"]
[Date "2024.01.23"]
[Round "8"]
[White "Actuary44"]
[Black "Laico"]
[Result "0-1"]
[WhiteElo "2495"]
[BlackElo "2361"]
[TimeControl "180+1"]
[EndTime "9:28:02 PST"]
[Termination "Laico won by checkmate"]

1. e4 {[%clk 0:03:00.9]} 1... e6 {[%clk 0:02:57.8]} 2. d4 {[%clk 0:03:00.9]}
2... d5 {[%clk 0:02:57.6]} 3. e5 {[%clk 0:03:01.6]} 3... c5 {[%clk 0:02:57.5]}
4. dxc5 {[%clk 0:03:02.5]} 4... Nc6 {[%clk 0:02:57.4]} 5. f4 {[%clk 0:03:03.1]}
5... Bxc5 {[%clk 0:02:50]} 6. Nf3 {[%clk 0:03:03.7]} 6... Nge7 {[%clk
0:02:49.8]} 7. Bd3 {[%clk 0:03:04.2]} 7... Nb4 {[%clk 0:02:38.2]} 8. Nc3 {[%clk
0:03:03]} 8... Nxd3+ {[%clk 0:02:36.3]} 9. Qxd3 {[%clk 0:03:03.9]} 9... a6
{[%clk 0:02:28.7]} 10. Be3 {[%clk 0:03:00.7]} 10... Bxe3 {[%clk 0:02:23.9]} 11.
Qxe3 {[%clk 0:03:01.6]} 11... Nf5 {[%clk 0:02:23.9]} 12. Qf2 {[%clk 0:03:01.8]}
12... b5 {[%clk 0:02:07.1]} 13. O-O-O {[%clk 0:03:01.1]} 13... b4 {[%clk
0:02:06.1]} 14. Ne2 {[%clk 0:02:52.5]} 14... a5 {[%clk 0:01:59.8]} 15. g4 {[%clk
0:02:52.3]} 15... Ne7 {[%clk 0:01:58.2]} 16. Ned4 {[%clk 0:02:45.4]} 16... Qb6
{[%clk 0:01:57.2]} 17. Qh4 {[%clk 0:02:25.4]} 17... a4 {[%clk 0:01:53.8]} 18.
Kb1 {[%clk 0:02:08.6]} 18... Qc5 {[%clk 0:01:12.4]} 19. Qg5 {[%clk 0:01:54.5]}
19... a3 {[%clk 0:01:09.2]} 20. Nb3 {[%clk 0:01:48.8]} 20... Qa7 {[%clk
0:01:06.3]} 21. bxa3 {[%clk 0:01:38.4]} 21... Qxa3 {[%clk 0:01:03.5]} 22. Nfd4
{[%clk 0:01:27.6]} 22... Qxa2+ {[%clk 0:00:48.8]} 23. Kc1 {[%clk 0:01:27.9]}
23... Ba6 {[%clk 0:00:36.8]} 24. f5 {[%clk 0:01:00.3]} 24... Rc8 {[%clk
0:00:32.5]} 25. fxe6 {[%clk 0:00:45.1]} 25... fxe6 {[%clk 0:00:24.1]} 26. Rd2
{[%clk 0:00:40.6]} 26... Bc4 {[%clk 0:00:20.6]} 27. Kd1 {[%clk 0:00:25.5]} 27...
Bxb3 {[%clk 0:00:18.6]} 28. Nxb3 {[%clk 0:00:26.4]} 28... Qb1+ {[%clk
0:00:14.5]} 29. Nc1 {[%clk 0:00:26.7]} 29... b3 {[%clk 0:00:13.9]} 30. Qxg7
{[%clk 0:00:23.8]} 30... Rg8 {[%clk 0:00:13.4]} 31. Qxh7 {[%clk 0:00:23.6]}
31... b2 {[%clk 0:00:12.8]} 32. Ke2 {[%clk 0:00:06.9]} 32... bxc1=Q {[%clk
0:00:13]} 33. Rxc1 {[%clk 0:00:07.5]} 33... Qxc1 {[%clk 0:00:13.3]} 34. h3
{[%clk 0:00:08]} 34... Qg1 {[%clk 0:00:10.9]} 35. Qh5+ {[%clk 0:00:05.9]} 35...
Kd7 {[%clk 0:00:10.4]} 36. Qh7 {[%clk 0:00:06]} 36... Qg2+ {[%clk 0:00:09.8]}
37. Kd1 {[%clk 0:00:06.1]} 37... Qf1# {[%clk 0:00:09]} 0-1